fUSD/lending_fUSD_20250724
["ID","MTS","AMOUNT","RATE_DAILY","PERIOD"]
[374536032,1753342244127,-153.0,0.0002576,2]
[374536034,1753342244138,-153.0,0.0002576,2]
[374536036,1753342244148,-153.0,0.0002576,2]
[374536038,1753342244158,-153.0,0.0002576,2]
[374536040,1753342244167,-153.0,0.0002576,2]
[374536042,1753342244177,-153.0,0.0002576,2]
[374536044,1753342244187,-153.0,0.0002576,2]
[374536046,1753342244197,-153.0,0.0002576,2]
[374536048,1753342244206,-153.0,0.0002576,2]
[374536050,1753342244216,-153.0,0.0002576,2]
[374536053,1753342244225,-153.0,0.0002576,2]
[374536055,1753342244235,-153.0,0.0002576,2]
[374536056,1753342244244,-153.0,0.0002576,2]
[374536058,1753342244254,-153.0,0.0002576,2]
[374536060,1753342244264,-153.0,0.0002576,2]
[374536063,1753342244273,-153.0,0.0002576,2]
[374536065,1753342244283,-153.0,0.0002576,2]
[374536067,1753342244294,-153.0,0.0002576,2]
[374536069,1753342244303,-153.0,0.0002576,2]
[374536071,1753342244313,-153.0,0.0002576,2]
[374536073,1753342244323,-153.0,0.0002576,2]
[374536075,1753342244332,-153.0,0.0002576,2]
[374536077,1753342244343,-153.0,0.0002576,2]
[374536079,1753342244352,-153.0,0.0002576,2]
[374536081,1753342244362,-153.0,0.00025764,2]
[374536083,1753342244371,-153.0,0.00025764,2]
[374536085,1753342244381,-153.0,0.00025764,2]
[374536087,1753342244391,-153.0,0.00025764,2]
[374536089,1753342244400,-153.0,0.00025764,2]
[374536091,1753342244409,-153.0,0.00025764,2]
[374536093,1753342244419,-153.0,0.00025764,2]
[374536095,1753342244428,-153.0,0.00025764,2]
[374536097,1753342244437,-153.0,0.00025764,2]
[374536099,1753342244447,-153.0,0.00025764,2]
[374536101,1753342244457,-153.0,0.00025764,2]
[374536103,1753342244465,-153.0,0.00025764,2]
[374536105,1753342244474,-153.0,0.00025764,2]
[374536107,1753342244485,-153.0,0.00025764,2]
[374536109,1753342244494,-153.0,0.00025764,2]
[374536111,1753342244504,-153.0,0.00025764,2]
[374536112,1753342244514,-153.0,0.00025764,2]
[374536115,1753342244524,-153.0,0.00025764,2]
[374536116,1753342244533,-153.0,0.00025764,2]
[374536118,1753342244543,-153.0,0.00025764,2]
[374536120,1753342244553,-153.0,0.00025764,2]
[374536123,1753342244563,-153.0,0.00025764,2]
[374536125,1753342244572,-153.0,0.00025764,2]
[374536127,1753342244582,-153.0,0.00025764,2]
[374536129,1753342244592,-153.0,0.00025764,2]
[374536131,1753342244602,-153.0,0.00025764,2]
[374536133,1753342244611,-153.0,0.00025764,2]
[374536135,1753342244620,-153.0,0.00025764,2]
[374536137,1753342244630,-153.0,0.00025764,2]
[374536139,1753342244639,-153.0,0.00025764,2]
[374536141,1753342244649,-153.0,0.00025764,2]
[374536143,1753342244659,-622.85869582,0.00025797,13]
[374536145,1753342244668,-286.48209743,0.000258,2]
[374536147,1753342244677,-1200.0,0.000258,9]
[374536149,1753342244687,-150.0,0.00025819,2]
[374536151,1753342244696,-201.0,0.0002582,2]
[374536153,1753342244706,-150.0,0.00025834,2]
[374536155,1753342244716,-150.0,0.00025843,2]
[374536157,1753342244726,-151.0,0.0002585,2]
[374536159,1753342244735,-8955.21099393,0.00025878,3]
[374536161,1753342244745,-152.0,0.00025888,5]
[374536163,1753342244755,-1000.0,0.00025889,2]
[374536165,1753342244766,-6262.8026,0.0002589,2]
[374536167,1753342244776,-2863.8914,0.000259,2]
[374536169,1753342244786,-158.46594933,0.000259,2]
[374536171,1753342244795,-682.38247811,0.000259,2]
[374536173,1753342244805,-1700.0,0.000259,9]
[374536175,1753342244815,-628.88901818,0.000259,2]
[374536177,1753342244824,-1200.81,0.00025924,2]
[374536179,1753342244834,-150.0,0.00025926,2]
[374536181,1753342244843,-150.0,0.00025937,2]
[374536183,1753342244853,-8955.21099393,0.00025963,3]
[374536185,1753342244862,-26865.6329818,0.0002597,3]
[374536187,1753342244872,-500.0,0.00025973,2]
[374536189,1753342244883,-500.0,0.00025973,2]
[374536191,1753342244892,-500.0,0.00025973,2]
[374536193,1753342244902,-502.34044548,0.00025973,2]
[374536195,1753342244911,-505.66396458,0.00025973,2]
[374536197,1753342244921,-501.71157845,0.00025973,2]
[374536199,1753342244932,-507.88411216,0.00025973,2]
[374536201,1753342244943,-500.0,0.00025973,2]
[374536203,1753342244952,-509.20696183,0.00025973,2]
[374536205,1753342244961,-500.0,0.00025973,2]
[374536207,1753342244973,-503.02584058,0.00025973,2]
[374536208,1753342244986,-500.90731436,0.00025973,2]
[374536209,1753342244998,-500.0,0.00025973,2]
[374536210,1753342245013,-500.0,0.00025973,2]
[374536211,1753342245025,-500.0,0.00025973,2]
[374536212,1753342245036,-513.40344777,0.00025973,2]
[374536213,1753342245050,-162.18189456,0.00025973,2]
[374536214,1753342245067,-500.0,0.00025973,2]
[374536216,1753342245079,-12602.0,0.00025973,2]
[374536218,1753342245089,-21153.0,0.00025973,2]
[374536220,1753342245100,-26865.6329818,0.00025978,3]
[374536221,1753342245110,-8955.21099393,0.0002598,3]
[374536224,1753342245124,-839.91269601,0.0002598,3]
[374536226,1753342245135,-477.18900901,0.0002598,3]
[374536228,1753342245145,-107462.531927,0.00025988,3]
[374536230,1753342245159,-181460.729059,0.00025988,3]
[374536232,1753342245169,-160.27,0.00025988,2]
[374536234,1753342245180,-194.52937529,0.00025988,2]
[374536236,1753342245193,-13958.51762,0.00025989,3]
[374536238,1753342245202,-139585.1762,0.0002599,3]
[374536240,1753342245212,-839.91269601,0.0002599,3]
[374536242,1753342245221,-477.18900901,0.0002599,3]
[374536244,1753342245231,-97709.6233397,0.0002599,3]
[374536246,1753342245240,-584.60882594,0.0002599,2]
[374536248,1753342245250,-160.27,0.0002599,2]
[374536250,1753342245262,-131954.4872952,0.00025998,2]
[374536252,1753342245271,-151.0,0.00025998,7]
[374536254,1753342245281,-151.0,0.00025998,7]
[374536256,1753342245290,-151.0,0.00025998,7]
[374536258,1753342245300,-151.0,0.00025998,7]
[374536260,1753342245309,-151.0,0.00025998,7]
[374536262,1753342245319,-151.0,0.00025998,7]
[374536264,1753342245328,-90250.61850711,0.00025998,2]
[374536267,1753342245344,-2863.94120799,0.00025998,2]
[374536275,1753342245417,-2926.32132795,0.00025998,2]
[374536338,1753342245821,-1702.38156078,0.00025663,2]
[374536365,1753342245907,-914.27769509,0.00025663,2]
[374536369,1753342245918,-86.00446354,0.00025998,2]
[374536372,1753342245929,-3529.19956791,0.00025998,2]
[374536375,1753342245940,-264.71534945,0.00025998,2]
[374536378,1753342245952,-366.08800014,0.00025998,2]
[374536387,1753342246001,-300.86614897,0.00025998,2]
[374536518,1753342247177,-23281.03355791,0.00025998,2]
[374536520,1753342247269,-297.3600018,0.00025998,2]
[374536523,1753342247281,-480.0,0.00025998,2]
[374536542,1753342247463,-444.44,0.00022,2]
[374536544,1753342247473,-1861.44285947,0.00025998,2]
[374536916,1753342252655,-444.44,0.00023703,2]
[374536917,1753342252668,-96.97692944,0.00025406,7]
[374536919,1753342399015,1115.68927,0.00027397,120]
[374536920,1753342403286,500.0,0.00027397,120]
[374536921,1753342410243,500.0,0.00027397,120]
[374536922,1753342673989,465.96,0.00026804,120]
[374536923,1753342710740,216.0,0.00026017,120]
[374536924,1753342710789,150.5,0.00026017,120]
[374536925,1753342711164,216.0,0.00026007,120]
[374536926,1753342711213,150.5,0.00026007,120]
[374536927,1753342711487,216.0,0.00025997,120]
[374536928,1753342711557,150.5,0.00025997,120]
[374536929,1753342996560,500.0,0.00027397,120]
[374536930,1753343001943,500.0,0.00027397,120]
[374536931,1753343007907,500.0,0.00027397,120]
[374536932,1753343023502,500.0,0.0002739,120]
[374536933,1753343030172,500.0,0.0002739,120]
[374536934,1753343043006,500.0,0.0002739,120]
[374536935,1753343049166,500.0,0.0002739,120]
[374536936,1753343058940,500.0,0.0002739,120]
[374536938,1753343099393,306.72925,0.0002739,120]
[374536956,1753343244779,550.7,0.0002737,120]
[374536958,1753343430977,150.5,0.00026017,120]
[374536966,1753343432171,150.5,0.00026007,120]
[374536986,1753343432583,150.5,0.00025997,120]
[374536988,1753343432714,-1166.87,0.00019178,2]
[374536989,1753343432724,-250.0,0.00019879,2]
[374536990,1753343432734,-300.0,0.00020579,2]
[374536991,1753343432744,-334.38678751,0.0002068,2]
[374536992,1753343432755,-1166.87,0.00020881,2]
[374536993,1753343432764,-250.0,0.00021096,2]
[374536994,1753343432774,-601.1343581,0.000219,6]
[374536995,1753343432788,-500.0,0.00021905,2]
[374536996,1753343432798,-464.90692801,0.00021905,2]
[374536997,1753343432808,-643.27128534,0.00021905,2]
[374536998,1753343432818,-154.937674,0.00021917,2]
[374536999,1753343432828,-214.902356,0.00021917,2]
[374537000,1753343432838,-214.902356,0.00021917,2]
[374537001,1753343432848,-214.902356,0.00021917,2]
[374537002,1753343432858,-154.937674,0.00021917,2]
[374537003,1753343432868,-154.937674,0.00021917,2]
[374537004,1753343432877,-168.017826,0.00021917,2]
[374537005,1753343432886,-168.017826,0.00021917,2]
[374537006,1753343432896,-150.0,0.00021918,2]
[374537007,1753343432905,-228.0,0.00022,2]
[374537008,1753343432916,-444.44,0.00022,2]
[374537009,1753343432925,-418.0,0.00022,2]
[374537010,1753343432935,-601.13435785,0.00022141,6]
[374537011,1753343432945,-214.902356,0.00022191,2]
[374537012,1753343432955,-154.937674,0.00022191,2]
[374537013,1753343432965,-168.017826,0.00022191,2]
[374537014,1753343432974,-529.14,0.00022284,2]
[374537015,1753343432984,-200.0,0.00022363,2]
[374537016,1753343432994,-601.13435785,0.00022383,7]
[374537017,1753343433003,-168.017826,0.00022465,2]
[374537018,1753343433012,-214.902356,0.00022465,2]
[374537019,1753343433022,-154.937674,0.00022465,2]
[374537020,1753343433036,-168.017826,0.00022465,2]
[374537021,1753343433046,-300.0,0.00022466,2]
[374537022,1753343433056,-1166.87,0.00022584,2]
[374537024,1753343433066,-601.13435785,0.00022624,7]
[374537026,1753343433076,-601.13435785,0.00022866,8]
[374537028,1753343433086,-1000.0,0.00023,2]
[374537030,1753343433096,-601.13435785,0.00023107,8]
[374537032,1753343433106,-410.0,0.0002318,2]
[374537034,1753343433115,-601.13435785,0.00023348,9]
[374537035,1753343433125,-500.0,0.00023367,2]
[374537036,1753343433135,-500.0,0.00023367,2]
[374537037,1753343433145,-675.01521399,0.00023475,2]
[374537038,1753343433158,-18.96478601,0.00023475,2]
[374537039,1753343433168,-666.0,0.00023481,3]
[374537040,1753343433178,-657.38,0.000235,2]
[374537041,1753343433188,-509.0,0.0002357,2]
[374537042,1753343433197,-1042.03,0.00023589,2]
[374537043,1753343433207,-601.13435785,0.0002359,9]
[374537044,1753343433217,-549.0,0.00023603,2]
[374537045,1753343433226,-452.48,0.00023611,2]
[374537046,1753343433236,-444.44,0.00023703,2]
[374537047,1753343433246,-938.98,0.00023743,2]
[374537048,1753343433256,-5000.0,0.00023755,2]
[374537049,1753343433266,-1000.0,0.00023804,2]
[374537050,1753343433275,-465.96,0.00023826,2]
[374537051,1753343433287,-180.0,0.00023829,7]
[374537052,1753343433297,-601.13435785,0.00023831,10]
[374537053,1753343433307,-201.02436368,0.00023832,2]
[374537054,1753343433317,-168.017826,0.00023835,2]
[374537055,1753343433326,-214.902356,0.00023835,2]
[374537056,1753343433336,-154.937674,0.00023835,2]
[374537057,1753343433346,-324.36,0.00023836,2]
[374537058,1753343433356,-3291.89,0.00023846,2]
[374537059,1753343433366,-205.41,0.00023847,2]
[374537060,1753343433376,-250.0,0.00023848,2]
[374537061,1753343433386,-889.76,0.00023851,2]
[374537062,1753343433395,-178.48,0.00023858,2]
[374537063,1753343433406,-150.0,0.00023896,2]
[374537064,1753343433418,-500.0,0.00023915,2]
[374537065,1753343433427,-1000.0,0.00023915,2]
[374537066,1753343433437,-601.13435785,0.00024072,10]
[374537067,1753343433447,-358.16534947,0.00024093,2]
[374537068,1753343433459,-1000.0,0.00024173,2]
[374537069,1753343433469,-150.0,0.00024196,2]
[374537070,1753343433479,-500.0,0.00024267,2]
[374537071,1753343433490,-500.0,0.00024267,2]
[374537072,1753343433500,-88.14372653,0.00024267,2]
[374537073,1753343433513,-413.39576046,0.00024267,2]
[374537074,1753343433522,-500.0,0.00024267,2]
[374537075,1753343433533,-1166.87,0.00024288,2]
[374537076,1753343433543,-601.13435785,0.00024314,10]
[374537077,1753343433553,-382.24765635,0.00024331,2]
[374537078,1753343433565,-166.75234365,0.00024331,2]
[374537079,1753343433575,-211.01152796,0.00024354,2]
[374537080,1753343433585,-839.91269601,0.00024354,2]
[374537081,1753343433595,-160.0,0.00024354,2]
[374537082,1753343433605,-477.18900901,0.00024354,2]
[374537083,1753343433615,-401.0,0.0002437,2]
[374537084,1753343433624,-549.0,0.00024409,2]
[374537085,1753343433634,-284.39,0.00024438,2]
[374537086,1753343433644,-1500.0,0.00024463,2]
[374537087,1753343433654,-286.48209743,0.00024483,2]
[374537088,1753343433664,-509.0,0.00024504,3]
[374537089,1753343433674,-200.0,0.00024515,2]
[374537090,1753343433684,-605.56231085,0.00024534,2]
[374537091,1753343433694,-20804.4,0.00024535,2]
[374537092,1753343433704,-150.0,0.00024541,2]
[374537093,1753343433714,-900.0,0.00024541,2]
[374537094,1753343433724,-150.0,0.00024541,2]
[374537095,1753343433734,-150.0,0.00024541,2]
[374537096,1753343433744,-2751.0,0.00024541,2]
[374537097,1753343433754,-601.13435785,0.00024555,11]
[374537098,1753343433763,-150.0,0.0002457,2]
[374537099,1753343433774,-150.0,0.0002457,2]
[374537100,1753343433786,-150.0,0.0002457,2]
[374537101,1753343433797,-166.10091954,0.00024747,2]
[374537102,1753343433808,-546.0,0.00024754,7]
[374537103,1753343433818,-150.0,0.00024782,2]
[374537104,1753343433828,-601.13435785,0.00024797,11]
[374537105,1753343433838,-546.0,0.00024802,2]
[374537106,1753343433847,-488.26516264,0.00024815,2]
[374537107,1753343433858,-500.90731436,0.00024815,2]
[374537108,1753343433868,-150.0,0.00024815,2]
[374537109,1753343433877,-900.0,0.00024815,2]
[374537110,1753343433887,-150.0,0.00024815,2]
[374537111,1753343433897,-150.0,0.00024844,2]
[374537112,1753343433907,-150.0,0.00024844,2]
[374537113,1753343433917,-546.0,0.00024871,7]
[374537114,1753343433927,-150.0,0.00024931,7]
[374537115,1753343433936,-150.0,0.00024931,7]
[374537116,1753343433946,-500.0,0.00024931,7]
[374537117,1753343433956,-160.0,0.00024932,7]
[374537118,1753343433966,-173.0,0.00024932,7]
[374537119,1753343433976,-546.0,0.00024995,2]
[374537120,1753343433985,-1000.0,0.00024999,2]
[374537121,1753343433995,-1000.0,0.00024999,2]
[374537122,1753343434005,-152.76,0.00025,2]
[374537123,1753343434015,-4018.86915738,0.00025,5]
[374537124,1753343434027,-9220.28928656,0.00025,5]
[374537125,1753343434039,-1224.76840754,0.00025,5]
[374537126,1753343434070,-1869.14500222,0.00025,5]
[374537127,1753343434081,-372.21969281,0.00025,5]
[374537128,1753343434095,-3294.70845349,0.00025,5]
[374537129,1753343434111,-5000.0,0.00025,2]
[374537130,1753343434121,-173.0,0.00025,7]
[374537131,1753343434133,-160.0,0.00025,7]
[374537132,1753343434143,-160.0,0.00025,7]
[374537133,1753343434153,-2000.0,0.00025011,2]
[374537134,1753343434163,-150.0,0.00025032,2]
[374537135,1753343434173,-601.13435785,0.00025038,12]
[374537136,1753343434185,-205.41,0.00025039,2]
[374537137,1753343434195,-1000.0,0.00025067,2]
[374537138,1753343434205,-465.69,0.00025068,2]
[374537139,1753343434215,-816.4,0.00025068,2]
[374537140,1753343434226,-816.4,0.00025068,2]
[374537141,1753343434235,-465.69,0.00025068,2]
[374537142,1753343434246,-740.08,0.00025068,2]
[374537143,1753343434256,-465.69,0.00025068,2]
[374537144,1753343434267,-465.69,0.00025068,2]
[374537145,1753343434277,-150.0,0.00025089,2]
[374537146,1753343434287,-900.0,0.00025089,2]
[374537147,1753343434297,-150.0,0.00025089,2]
[374537148,1753343434307,-184.76100839,0.00025118,2]
[374537149,1753343434319,-15.23899161,0.00025118,2]
[374537150,1753343434329,-200.0,0.00025118,2]
[374537151,1753343434340,-150.0,0.00025157,2]
[374537152,1753343434350,-150.0,0.00025205,7]
[374537153,1753343434360,-167.43190875,0.00025205,7]
[374537154,1753343434370,-500.0,0.00025205,7]
[374537155,1753343434380,-567.69741089,0.00025245,2]
[374537156,1753343434390,-252.85412746,0.00025245,2]
[374537157,1753343434400,-346.92554585,0.00025245,2]
[374537158,1753343434414,-151.58295351,0.00025245,2]
[374537159,1753343434424,-600.0,0.00025245,2]
[374537160,1753343434434,-231.28369723,0.00025245,2]
[374537161,1753343434445,-4031.856,0.00025245,2]
[374537162,1753343434454,-162.09665772,0.00025245,2]
[374537163,1753343434464,-338.62243693,0.00025245,2]
[374537164,1753343434474,-601.13435785,0.00025279,12]
[374537165,1753343434484,-200.0,0.00025363,2]
[374537166,1753343434496,-900.0,0.00025363,2]
[374537167,1753343434506,-150.0,0.00025363,2]
[374537168,1753343434515,-300.0,0.00025378,2]
[374537169,1753343434526,-150.0,0.00025389,2]
[374537170,1753343434537,-1000.0,0.00025405,2]
[374537171,1753343434547,-1000.0,0.00025405,2]
[374537172,1753343434557,-150.0,0.00025406,2]
[374537173,1753343434567,-150.0,0.00025406,7]
[374537174,1753343434577,-150.0,0.00025406,7]
[374537175,1753343434587,-150.0,0.00025406,7]
[374537176,1753343434597,-150.0,0.00025406,7]
[374537177,1753343434607,-150.0,0.00025406,7]
[374537178,1753343434617,-150.14461012,0.00025406,7]
[374537179,1753343434627,-500.0,0.00025406,7]
[374537180,1753343434637,-150.0,0.00025406,7]
[374537181,1753343434647,-500.0,0.00025406,7]
[374537182,1753343434657,-418.93547056,0.00025406,7]
[374537183,1753343434670,-25.50452944,0.00025406,7]
[374537184,1753343434680,-150.0,0.00025408,2]
[374537185,1753343434690,-546.0,0.0002542,2]
[374537186,1753343434700,-509.0,0.00025438,4]
[374537187,1753343434710,-150.0,0.00025468,2]
[374537188,1753343434720,-150.0,0.00025479,7]
[374537189,1753343434730,-500.0,0.00025479,7]
[374537190,1753343434740,-1906.259416,0.0002548,16]
[374537191,1753343434750,-227.04978277,0.0002548,2]
[374537192,1753343434760,-632.0,0.00025485,2]
[374537193,1753343434770,-601.13435785,0.00025521,13]
[374537194,1753343434781,-393.0,0.0002555,2]
[374537195,1753343434791,-1654.17617514,0.00025558,2]
[374537196,1753343434803,-152.23049951,0.00025576,2]
[374537197,1753343434812,-2248.17813568,0.00025576,2]
[374537198,1753343434822,-300.0,0.000256,9]
[374537199,1753343434832,-263.18,0.00025614,2]
[374537200,1753343434842,-546.0,0.00025634,2]
[374537201,1753343434852,-900.0,0.00025637,2]
[374537202,1753343434862,-256.54055567,0.00025637,2]
[374537203,1753343434872,-152.23049951,0.00025641,2]
[374537204,1753343434882,-546.0,0.00025656,2]
[374537205,1753343434891,-546.0,0.00025668,2]
[374537206,1753343434902,-150.0,0.00025672,2]
[374537207,1753343434911,-153.0,0.00025676,2]
[374537208,1753343434921,-153.0,0.00025676,2]
[374537209,1753343434931,-153.0,0.00025676,2]
[374537210,1753343434940,-153.0,0.00025676,2]
[374537211,1753343434950,-153.0,0.00025676,2]
[374537212,1753343434960,-153.0,0.00025676,2]
[374537213,1753343434969,-153.0,0.00025676,2]
[374537214,1753343434979,-153.0,0.00025676,2]
[374537215,1753343434989,-153.0,0.00025676,2]
[374537216,1753343434998,-153.0,0.00025676,2]
[374537217,1753343435007,-153.0,0.00025676,2]
[374537218,1753343435017,-153.0,0.00025676,2]
[374537219,1753343435028,-153.0,0.00025676,2]
[374537220,1753343435038,-153.0,0.00025676,2]
[374537221,1753343435048,-153.0,0.00025676,2]
[374537222,1753343435058,-153.0,0.00025676,2]
[374537223,1753343435068,-153.0,0.00025676,2]
[374537224,1753343435078,-153.0,0.00025676,2]
[374537225,1753343435087,-153.0,0.00025676,2]
[374537226,1753343435097,-153.0,0.00025676,2]
[374537227,1753343435106,-153.0,0.00025676,2]
[374537228,1753343435116,-153.0,0.00025676,2]
[374537229,1753343435126,-153.0,0.00025676,2]
[374537230,1753343435137,-153.0,0.00025676,2]
[374537231,1753343435148,-153.0,0.00025676,2]
[374537232,1753343435158,-153.0,0.00025676,2]
[374537233,1753343435168,-153.0,0.00025676,2]
[374537234,1753343435177,-153.0,0.00025676,2]
[374537235,1753343435187,-153.0,0.00025676,2]
[374537236,1753343435196,-153.0,0.00025676,2]
[374537237,1753343435206,-153.0,0.00025676,2]
[374537238,1753343435216,-153.0,0.00025676,2]
[374537239,1753343435226,-153.0,0.00025676,2]
[374537240,1753343435235,-153.0,0.00025676,2]
[374537241,1753343435245,-153.0,0.00025676,2]
[374537242,1753343435255,-153.0,0.00025676,2]
[374537243,1753343435265,-153.0,0.00025676,2]
[374537244,1753343435275,-153.0,0.00025676,2]
[374537245,1753343435285,-153.0,0.00025676,2]
[374537246,1753343435295,-153.0,0.00025676,2]
[374537247,1753343435305,-153.0,0.00025676,2]
[374537248,1753343435314,-153.0,0.00025676,2]
[374537249,1753343435324,-153.0,0.00025676,2]
[374537250,1753343435334,-153.0,0.00025676,2]
[374537251,1753343435343,-153.0,0.00025676,2]
[374537252,1753343435353,-153.0,0.00025676,2]
[374537253,1753343435363,-153.0,0.00025676,2]
[374537254,1753343435372,-153.0,0.00025676,2]
[374537255,1753343435382,-153.0,0.00025676,2]
[374537256,1753343435392,-153.0,0.00025676,2]
[374537257,1753343435402,-153.0,0.00025676,2]
[374537258,1753343435415,-153.0,0.00025676,2]
[374537259,1753343435425,-153.0,0.00025676,2]
[374537260,1753343435435,-153.0,0.00025676,2]
[374537261,1753343435444,-153.0,0.00025676,2]
[374537262,1753343435456,-153.0,0.00025676,2]
[374537263,1753343435465,-153.0,0.00025676,2]
[374537264,1753343435475,-153.0,0.00025676,2]
[374537265,1753343435487,-153.0,0.00025676,2]
[374537266,1753343435497,-153.0,0.00025676,2]
[374537267,1753343435508,-153.0,0.00025676,2]
[374537268,1753343435517,-153.0,0.00025676,2]
[374537269,1753343435528,-153.0,0.00025676,2]
[374537270,1753343435539,-153.0,0.00025676,2]
[374537271,1753343435548,-153.0,0.00025676,2]
[374537272,1753343435558,-153.0,0.00025676,2]
[374537273,1753343435568,-153.0,0.00025676,2]
[374537274,1753343435579,-153.0,0.00025676,2]
[374537275,1753343435588,-153.0,0.00025676,2]
[374537276,1753343435599,-153.0,0.00025676,2]
[374537277,1753343435609,-153.0,0.00025676,2]
[374537278,1753343435620,-153.0,0.00025676,2]
[374537279,1753343435903,-153.0,0.00025676,2]
[374537280,1753343435936,-153.0,0.00025676,2]
[374537281,1753343435946,-153.0,0.00025676,2]
[374537282,1753343435955,-153.0,0.00025676,2]
[374537283,1753343435965,-153.0,0.00025676,2]
[374537284,1753343435974,-153.0,0.00025676,2]
[374537285,1753343435984,-153.0,0.00025676,2]
[374537286,1753343435994,-153.0,0.00025676,2]
[374537287,1753343436003,-153.0,0.00025676,2]
[374537288,1753343436013,-153.0,0.00025676,2]
[374537289,1753343436023,-153.0,0.00025676,2]
[374537290,1753343436032,-153.0,0.00025676,2]
[374537291,1753343436042,-153.0,0.00025676,2]
[374537292,1753343436052,-153.0,0.00025676,2]
[374537293,1753343436061,-153.0,0.00025676,2]
[374537294,1753343436070,-153.0,0.00025676,2]
[374537295,1753343436080,-153.0,0.00025676,2]
[374537296,1753343436089,-153.0,0.00025676,2]
[374537297,1753343436099,-153.0,0.00025676,2]
[374537298,1753343436108,-153.0,0.00025676,2]
[374537299,1753343436118,-153.0,0.00025676,2]
[374537300,1753343436127,-153.0,0.00025676,2]
[374537301,1753343436139,-153.0,0.00025676,2]
[374537302,1753343436149,-153.0,0.00025676,2]
[374537303,1753343436159,-153.0,0.00025676,2]
[374537304,1753343436168,-153.0,0.00025676,2]
[374537305,1753343436178,-153.0,0.00025676,2]
[374537306,1753343436187,-153.0,0.00025676,2]
[374537307,1753343436197,-153.0,0.00025676,2]
[374537308,1753343436206,-153.0,0.00025676,2]
[374537309,1753343436215,-153.0,0.00025676,2]
[374537310,1753343436225,-153.0,0.00025676,2]
[374537311,1753343436235,-153.0,0.00025676,2]
[374537312,1753343436244,-153.0,0.00025676,2]
[374537313,1753343436254,-153.0,0.00025676,2]
[374537314,1753343436264,-153.0,0.00025676,2]
[374537315,1753343436275,-153.0,0.00025676,2]
[374537316,1753343436286,-153.0,0.00025676,2]
[374537317,1753343436295,-153.0,0.00025676,2]
[374537318,1753343436305,-153.0,0.00025676,2]
[374537319,1753343436315,-153.0,0.00025676,2]
[374537320,1753343436324,-59.67232583,0.00025676,2]
[374537321,1753343436338,-90.32767417,0.00025676,2]
[374537322,1753343436348,-153.0,0.00025677,2]
[374537323,1753343436357,-153.0,0.00025677,2]
[374537324,1753343436367,-153.0,0.00025677,2]
[374537325,1753343436377,-153.0,0.00025677,2]
[374537326,1753343436387,-153.0,0.00025677,2]
[374537327,1753343436396,-150.0,0.0002568,2]
[374537328,1753343436407,-150.0,0.0002568,7]
[374537329,1753343436419,-150.0,0.0002568,7]
[374537330,1753343436429,-150.0,0.0002568,7]
[374537331,1753343436439,-150.0,0.0002568,7]
[374537332,1753343436449,-307.81052558,0.0002568,7]
[374537333,1753343436462,-192.18947442,0.0002568,7]
[374537334,1753343436471,-150.0,0.0002568,7]